{"text_format":"3","workbook":"xlsx","n_sheets":3,"sheets":["Ramis Excel","BOQ","Sheet1"],"not_rendered":{"defined_names":2},"read":"whole","date_system":"1900"}

{"sheet":"Ramis Excel","index":0,"n_rows":211,"n_cols":11,"rows_kept":211,"hidden":true}
["Corporate Number","Business Unit","ERP Number","Image","Short Description","Long Description","Status","Source","Service Type","Data Quality Level","AA"]
["S000008132","4500","3000020145","N","MAINT BOOM:ACCESS CONTROL;METAL","MAINTAIN, BOOM: TYPE: ACCESS CONTROL; MATERIAL: METAL; FREQUENCY: AS REQUIRED; METHOD: KEEP IN A GOOD STATE VEHICLE BOOM GATES INCLUDING MAINTENANCE, REPAIRS AND MODIFICATIONS TO MOTORS, MECHANICAL PARTS AND ACCESS CONTROL","C1-ERP ACCEPTED","CATALOGUED","EQUI","5",{"$f":"CONCATENATE(A2,\",\")","v":"S000008132,"}]
["S000008346","4600","3000020928","N","STRINGING COND:BULL;DIA 38.25 MM","STRINGING, CONDUCTOR: TYPE: BULL; DIMENSIONS: DIA 38.25 MM; METHOD: INSTALLATION OF TRANSMISSION SUBSTATION STRINGING AND TERMINATION BY METHOD OF CRIMPING OR CLAMPING; ALL WORK TO BE CARRIED OUT IN ACCORDANCE WITH APPROVED SAFETY REGULATIONS","C1-ERP ACCEPTED","CATALOGUED","ALL","5",{"$f":"CONCATENATE(A3,\",\")","v":"S000008346,"}]
["S000008347","4600","3000020929","N","STRINGING COND:CENTIPEDE;DIA 26.46 MM","STRINGING, CONDUCTOR: TYPE: CENTIPEDE; DIMENSIONS: DIA 26.46 MM; METHOD: INSTALLATION OF TRANSMISSION SUBSTATION STRINGING AND TERMINATION BY METHOD OF CRIMPING OR CLAMPING; ALL WORK TO BE CARRIED OUT IN ACCORDANCE WITH APPROVED SAFETY REGULATIONS","C1-ERP ACCEPTED","CATALOGUED","ALL","5","S000008347,"]
["S000008371","4600","3000020953","N","MAINT EQP ELEC:LINE TRAP;AS REQUIRED","MAINTAIN, EQUIPMENT, ELECTRICAL: TYPE: LINE TRAP; FREQUENCY: AS REQUIRED; METHOD: KEEP IN A GOOD STATE LINE TRAP BY MEANS OF MAINTENANCE, REPAIRS AND MODIFICATIONS; ALL WORK TO BE CARRIED OUT IN ACCORDANCE WITH APPROVED SAFETY REGULATIONS","C1-ERP ACCEPTED","CATALOGUED","ALL","5","S000008371,"]
["S000008372","4600","3000020954","N","MAINT FENC:ELECTRIC;VARIOUS;AS REQUIRED","MAINTAIN, FENCE: TYPE: ELECTRIC; MATERIAL: VARIOUS; FREQUENCY: AS REQUIRED; METHOD: KEEP IN A GOOD STATE ELECTRIC FENCING INCLUDING MAINTENANCE, REPAIRS AND MODIFICATIONS TO SUPPORTS, POLES, INSULATORS, WIRING AND ENERGISER","C1-ERP ACCEPTED","CATALOGUED","ALL","5","S000008372,"]
["S000008373","4600","3000020955","N","MAINT FENC:DIAMOND MESH;STEEL","MAINTAIN, FENCE: TYPE: DIAMOND MESH; MATERIAL: STEEL; FREQUENCY: AS REQUIRED; METHOD: KEEP IN A GOOD STATE 2 M FENCING INCLUDING MAINTENANCE, REPAIRS AND MODIFICATIONS TO SUPPORTS, POLES, WIRE AND MESH","C1-ERP ACCEPTED","CATALOGUED","ALL","5","S000008373,"]
["S000008374","4600","3000020956","N","MAINT FENC:WELDED MESH;STEEL;AS REQUIRED","MAINTAIN, FENCE: TYPE: WELDED MESH; MATERIAL: STEEL; FREQUENCY: AS REQUIRED; METHOD: KEEP IN A GOOD STATE 2.4 M FENCING INCLUDING MAINTENANCE, REPAIRS AND MODIFICATIONS TO SUPPORTS, POLES AND MESH","C1-ERP ACCEPTED","CATALOGUED","ALL","5","S000008374,"]
["S000008587","5210","3000022150","N","INSTL ANCHR:CHEMICAL;RESIN EPOXY","INSTALL, ANCHOR: TYPE: CHEMICAL; MATERIAL: RESIN EPOXY; DRAWING NO: D-DT-0357 SHT 3","C1-ERP ACCEPTED","CATALOGUED","ALL","4","S000008587,"]
["S000008837","4600","3000023029","N","PROV REG COMPL:HEALTH AND SAFETY","PROVIDE, REGULATORY COMPLIANCE: TYPE: HEALTH AND SAFETY; FREQUENCY: AS REQUIRED; FEEDBACK: WRITTEN; FORMAT: HARD COPY","C1-ERP ACCEPTED","CATALOGUED","ALL","5","S000008837,"]
["S000008838","4600","3000023030","N","MAINT STRUCT:SMALL WORKS;AS REQUIRED","MAINTAIN, STRUCTURE: TYPE: SMALL WORKS; FREQUENCY: AS REQUIRED; METHOD: OFF-SITE FABRICATION","C1-ERP ACCEPTED","CATALOGUED","ALL","5","S000008838,"]
["S000008839","4600","3000023031","N","RENT EQP CONSTR:PLANT HIRE","RENT, EQUIPMENT, CONSTRUCTION: TYPE: PLANT HIRE","C1-ERP ACCEPTED","CATALOGUED","EQUI","5","S000008839,"]
["S000008840","4600","3000023032","N","RENT MTR VEH:DOUBLE CAB;TRUCK;8 T","RENT, MOTOR VEHICLE: TYPE: DOUBLE CAB; GROUP: TRUCK; TRANSMISSION TYPE: MANUAL/AUTO; FUEL TYPE: PETROL/DIESEL; LOAD CAPACITY: 8 T","C1-ERP ACCEPTED","CATALOGUED","TRSP","4","S000008840,"]
["S000008841","4600","3000023033","N","TRNSP MTRL:SITE MAINTENANCE;ROAD;TRUCK","TRANSPORT, MATERIAL: TYPE: SITE MAINTENANCE; TRANSPORT METHOD: ROAD; VEHICLE TYPE: TRUCK; WEIGHT: 8 T; DISTANCE: VARIOUS","C1-ERP ACCEPTED","CATALOGUED","ALL","4","S000008841,"]
["S000008886","4600","3000023078","N","TRNSP PPL:SITE;ROAD;LVD","TRANSPORT, PEOPLE: TYPE: SITE; TRANSPORT METHOD: ROAD; VEHICLE TYPE: LVD","C1-ERP ACCEPTED","CATALOGUED","TRSP","4","S000008886,"]
["S000008936","4600","3000023128","N","HIRE SUPVSR:SENIOR;HV SITE;5","HIRE, SUPERVISOR: SENIORITY: SENIOR; TYPE: HV SITE; QUALIFICATION: N6 OR EQUIVALENT; YEARS EXPERIENCE: 5; RELEVANT EXPERIENCE: SUB-STATION","C1-ERP ACCEPTED","CATALOGUED","ALL","4","S000008936,"]
["S000008937","4600","3000023129","N","RENT EQP CONSTR:TOOLS AND EQUIPMENT","RENT, EQUIPMENT, CONSTRUCTION: TYPE: TOOLS AND EQUIPMENT","C1-ERP ACCEPTED","CATALOGUED","EQUI","5","S000008937,"]
["S000008938","4600","3000023131","N","APPLY, PAINT:INDUSTRIAL;BRUSH","APPLY, PAINT: TYPE: INDUSTRIAL; METHOD: BRUSH; SURFACE TYPE: COPPER STRAPS","C1-ERP ACCEPTED","CATALOGUED","ALL","4","S000008938,"]
["S000008939","4600","3000023132","N","APPLY, PAINT:COLD GALVANIZING;BRUSH","APPLY, PAINT: TYPE: COLD GALVANIZING; METHOD: BRUSH; SURFACE TYPE: STEEL; SURFACE PREPARATION: REMOVE AND TREAT FOR RUST","C1-ERP ACCEPTED","CATALOGUED","ALL","4","S000008939,"]
["S000008941","3280","3000023134","N","CAST CONCRTE:VARIOUS;25 MPA;STEEL","CAST, CONCRETE: TYPE: VARIOUS; COMPOSITION: CEMENT, SAND AND STONE; STRENGTH: 25 MPA; THICKNESS: AS REQUIRED; REINFORCED: STEEL","C1-ERP ACCEPTED","CATALOGUED","ALL","5","S000008941,"]
["S000008942","4600","3000023135","N","DISMNTL STRUCT:STEEL","DISMANTLE, STRUCTURE: TYPE: STEEL","C1-ERP ACCEPTED","CATALOGUED","ALL","4","S000008942,"]
["S000008943","4600","3000023136","N","ERECT BARCD:BOLLARD","ERECT, BARRICADE: TYPE: BOLLARD; SUPPLY AND MOUNT","C1-ERP ACCEPTED","CATALOGUED","ALL","5","S000008943,"]
["S000008944","4600","3000023137","N","ERECT POLE:GATE POST;STEEL","ERECT, POLE: TYPE: GATE POST; MATERIAL: STEEL; METHOD: PLANT, BACKFILL AND COMPACT","C1-ERP ACCEPTED","CATALOGUED","ALL","5","S000008944,"]
["S000008945","4600","3000023138","N","ERECT POLE:SERVITUDE GATE POST;STEEL","ERECT, POLE: TYPE: SERVITUDE GATE POST; MATERIAL: STEEL; METHOD: PLANT, BACKFILL AND COMPACT","C1-ERP ACCEPTED","CATALOGUED","ALL","5","S000008945,"]
["S000008946","4600","3000023139","N","EXCVT:PHYSICAL OR MECHANICAL;VARIOUS","EXCAVATE: METHOD: PHYSICAL OR MECHANICAL; GROUND TYPE: VARIOUS; REASON: TRENCHING AND FILLING","C1-ERP ACCEPTED","CATALOGUED","ALL","4","S000008946,"]
["S000008947","4600","3000023140","N","INSTL EARTH:COPPER STRAP","INSTALL, EARTHING: TYPE: COPPER STRAP; ANCHOR TO CONCRETE","C1-ERP ACCEPTED","CATALOGUED","ALL","5","S000008947,"]
["S000008949","4600","3000023147","N","JOIN CBL ELEC:VARIOUS;COMPRESSION","JOIN, CABLE, ELECTRICAL: TYPE: VARIOUS; METHOD: COMPRESSION","C1-ERP ACCEPTED","CATALOGUED","ALL","5","S000008949,"]
["S000008950","4600","3000023148","N","MAINT CBL PWR:ENTRY DEVICE;AS REQUIRED","MAINTAIN, CABLE, POWER: TYPE: ENTRY DEVICE; FREQUENCY: AS REQUIRED; METHOD: INSTALL CABLE GLAND","C1-ERP ACCEPTED","CATALOGUED","ALL","5","S000008950,"]
["S000008951","4600","3000023149","N","MAINT GATE:SWING;METAL;AS REQUIRED","MAINTAIN, GATE: TYPE: SWING; MATERIAL: METAL; FREQUENCY: AS REQUIRED; METHOD: REPAIR AND ADJUST HINGES","C1-ERP ACCEPTED","CATALOGUED","EQUI","5","S000008951,"]
["S000008952","4600","3000023150","N","MAINT GATE:ELECTRIC SLIDING;METAL","MAINTAIN, GATE: TYPE: ELECTRIC SLIDING; MATERIAL: METAL; FREQUENCY: AS REQUIRED; METHOD: REPAIR AND ADJUST END STOP; REPAIR AND ADJUST ROLLER GUIDES","C1-ERP ACCEPTED","CATALOGUED","EQUI","5","S000008952,"]
["S000008953","4600","3000023151","N","MAINT GATE:ELECTRIC SLIDING;METAL","MAINTAIN, GATE: TYPE: ELECTRIC SLIDING; MATERIAL: METAL; FREQUENCY: AS REQUIRED; METHOD: ADJUST GATE MOTORS POSITION AND DRIVE RACKS TO ELIMINATE SLACKS; ALIGN LIMIT SWITCHES","C1-ERP ACCEPTED","CATALOGUED","EQUI","5","S000008953,"]
["S000008954","4600","3000023152","N","MAINT GATE:VARIOUS;METAL;AS REQUIRED","MAINTAIN, GATE: TYPE: VARIOUS; MATERIAL: METAL; FREQUENCY: AS REQUIRED; METHOD: REPAIR GATE POST","C1-ERP ACCEPTED","CATALOGUED","EQUI","5","S000008954,"]
["S000008955","4600","3000023153","N","MAINT GATE:ELECTRIC SLIDING;METAL","MAINTAIN, GATE: TYPE: ELECTRIC SLIDING; MATERIAL: METAL; FREQUENCY: AS REQUIRED; METHOD: REPAIR GATE DRIVE RACK","C1-ERP ACCEPTED","CATALOGUED","EQUI","5","S000008955,"]
["S000008956","4600","3000023154","N","MAINT GATE:VARIOUS;METAL;AS REQUIRED","MAINTAIN, GATE: TYPE: VARIOUS; MATERIAL: METAL; FREQUENCY: AS REQUIRED; METHOD: MODIFY ACCESS GATE BRACKETS","C1-ERP ACCEPTED","CATALOGUED","EQUI","5","S000008956,"]
["S000008957","4600","3000023155","N","MAINT GATE:ELECTRIC SLIDING;STEEL","MAINTAIN, GATE: TYPE: ELECTRIC SLIDING; MATERIAL: STEEL; FREQUENCY: AS REQUIRED; METHOD: SUPPLY AND INSTALL GATE DRIVE RACK","C1-ERP ACCEPTED","CATALOGUED","EQUI","5","S000008957,"]
["S000008958","4600","3000023156","N","MAINT GATE:ELECTRIC SLIDING;STEEL","MAINTAIN, GATE: TYPE: ELECTRIC SLIDING; MATERIAL: STEEL; FREQUENCY: AS REQUIRED; METHOD: SUPPLY AND INSTALL SLIDING GATE TRACK","C1-ERP ACCEPTED","CATALOGUED","ALL","5","S000008958,"]
["S000008959","4600","3000023157","N","MAINT GATE:ELECTRIC SLIDING;METAL","MAINTAIN, GATE: TYPE: ELECTRIC SLIDING; MATERIAL: METAL; FREQUENCY: AS REQUIRED; METHOD: SUPPLY AND INSTALL SLIDE GATE ROLLER WHEELS","C1-ERP ACCEPTED","CATALOGUED","EQUI","5","S000008959,"]
["S000008960","4600","3000023158","N","MAINT SITE:YARD STONE","MAINTAIN, SITE: TYPE: YARD STONE; REMOVE AND REINSTATE","C1-ERP ACCEPTED","CATALOGUED","ALL","5","S000008960,"]
["S000008961","4600","3000023159","N","MAINT SITE:TRENCH COVERS","MAINTAIN, SITE: TYPE: TRENCH COVERS; LIFT AND REPLACE","C1-ERP ACCEPTED","CATALOGUED","ALL","5","S000008961,"]
["S000008962","4600","3000023160","N","MAINT SITE:PAVING BRICKS","MAINTAIN, SITE: TYPE: PAVING BRICKS; REMOVE AND REPLACE","C1-ERP ACCEPTED","CATALOGUED","ALL","5","S000008962,"]
["S000008963","4600","3000023161","N","MAINT STRUCT:SMALL WORKS;AS REQUIRED","MAINTAIN, STRUCTURE: TYPE: SMALL WORKS; FREQUENCY: AS REQUIRED; METHOD: REPAIR FAULTY STRUCTURE","C1-ERP ACCEPTED","CATALOGUED","ALL","5","S000008963,"]
["S000008964","4600","3000023162","N","REPR CVR:TRENCH","REPAIR, COVER: TYPE: TRENCH; METHOD: BRING INTO ORIGINAL MANUFACTURED CONDITION; CHECKER PLATE","C1-ERP ACCEPTED","CATALOGUED","ALL","5","S000008964,"]
["S000008965","4600","3000023163","N","REPR EQP:ANTI CLIMB","REPAIR, EQUIPMENT: TYPE: ANTI CLIMB; METHOD: BRING INTO GOOD STATE HV TOWER ANTI CLIMB","C1-ERP ACCEPTED","CATALOGUED","ALL","5","S000008965,"]
["S000008966","4600","3000023164","N","REPR MTR ELEC:SLIDING GATE","REPAIR, MOTOR, ELECTRIC: TYPE: SLIDING GATE; REPAIR TYPE: ORIGINIAL SPECIFICATION","C1-ERP ACCEPTED","CATALOGUED","ALL","4","S000008966,"]
["S000008967","4600","3000023165","N","SEAL EQP:MOTOR COVER;SILICONE","SEAL, EQUIPMENT: TYPE: MOTOR COVER; SEALANT: SILICONE; SEALING METHOD: APPLICATOR OR HAND","C1-ERP ACCEPTED","CATALOGUED","ALL","4","S000008967,"]
["S000008968","4600","3000023166","N","INSTL GATE:SERVITUDE;GALVINISED STEEL","INSTALL, GATE: TYPE: SERVITUDE; FRAME MATERIAL: GALVINISED STEEL; FILLER MATERIAL: VARIOUS","C1-ERP ACCEPTED","CATALOGUED","ALL","4","S000008968,"]
["S000008969","4600","3000023167","N","INSTL GATE:PEDESTRIAN;GALVINISED STEEL","INSTALL, GATE: TYPE: PEDESTRIAN; FRAME MATERIAL: GALVINISED STEEL; FILLER MATERIAL: VARIOUS","C1-ERP ACCEPTED","CATALOGUED","ALL","4","S000008969,"]
["S000008970","4600","3000023169","N","ERECT STRUCT:VARIOUS STEEL","ERECT, STRUCTURE: TYPE: VARIOUS STEEL","C1-ERP ACCEPTED","CATALOGUED","ALL","4","S000008970,"]
["S000009022","3280","3000023246","N","CAST CONCRTE:ENCAPSULATE;CONDUCTIVE","CAST, CONCRETE: TYPE: ENCAPSULATE; COMPOSITION: CONDUCTIVE; STRENGTH: 30 MPA; THICKNESS: AS REQUIRED; REINFORCED: NOT REINFORCED","C1-ERP ACCEPTED","CATALOGUED","ALL","5","S000009022,"]
["S000009023","4600","3000023247","N","CONSTR STRUCT:BUNDEWALL;BRICK","CONSTRUCT, STRUCTURE: TYPE: BUNDEWALL; MATERIAL: BRICK","C1-ERP ACCEPTED","CATALOGUED","ALL","5","S000009023,"]
["S000009024","4600","3000023248","N","TERMN CBL:POWER/COMMS;LOW;XLPE;VARIOUS","TERMINATE, CABLE: TYPE: POWER/COMMS; VOLTAGE: LOW; INSULATION: XLPE; CORE QUANTITY: VARIOUS; CABLE SIZE: VARIOUS MM2","C1-ERP ACCEPTED","CATALOGUED","ALL","5","S000009024,"]
["S000009025","4600","3000023249","N","INSTL CLMP:BOLT-ON;ALUMINUM","INSTALL, CLAMP: TYPE: BOLT-ON; MATERIAL: ALUMINUM","C1-ERP ACCEPTED","CATALOGUED","ALL","5","S000009025,"]
["S000009596","5200","3000024221","N","RMV EQP ELEC:PHYSICAL AND MECHANICAL","REMOVE, EQUIPMENT, ELECTRICAL: TYPE: 132KV MOTORISED OPERATED ISOLATOR; METHOD: PHYSICAL AND MECHANICAL","C1-ERP ACCEPTED","CATALOGUED","ALL","5","S000009596,"]
["S000009597","5200","3000024222","N","RMV EQP ELEC:66KV HAND OPERATED ISOLATOR","REMOVE, EQUIPMENT, ELECTRICAL: TYPE: 66KV HAND OPERATED ISOLATOR; METHOD: PHYSICAL AND MECHANICAL","C1-ERP ACCEPTED","CATALOGUED","ALL","5","S000009597,"]
["S000009600","5200","3000024225","N","RMV EQP ELEC:33KV HAND OPERATED ISOLATOR","REMOVE, EQUIPMENT, ELECTRICAL: TYPE: 33KV HAND OPERATED ISOLATOR; METHOD: PHYSICAL AND MECHANICAL","C1-ERP ACCEPTED","CATALOGUED","ALL","5","S000009600,"]
["S000009602","5200","3000024227","N","RMV EQP ELEC:22KV HAND OPERATED ISOLATOR","REMOVE, EQUIPMENT, ELECTRICAL: TYPE: 22KV HAND OPERATED ISOLATOR; METHOD: PHYSICAL AND MECHANICAL","C1-ERP ACCEPTED","CATALOGUED","ALL","5","S000009602,"]
["S000010281","4500","3000024988","N","INSTL EQP ELEC:GATE MOTOR","INSTALL, EQUIPMENT, ELECTRICAL: TYPE: GATE MOTOR; METHOD: INSTALL AS PER MANUFACTURER INSTRUCTION; DRAWING NO: 054/7470 SHEET 8","C1-ERP ACCEPTED","CATALOGUED","ALL","4","S000010281,"]
["S000011297","5300","3000026413","N","INSTL EQP ELEC:CAPACITOR","INSTALL, EQUIPMENT, ELECTRICAL: TYPE: CAPACITOR","A5-APPROVED FOR ERP","CATALOGUED","EQUI","4","S000011297,"]
["S000011310","5300","3000026426","N","RMV EQP ELEC:CAPACITOR","REMOVE, EQUIPMENT, ELECTRICAL: TYPE: CAPACITOR","A5-APPROVED FOR ERP","CATALOGUED","EQUI","4","S000011310,"]
["S000012357","4721","3000028319","N","RMV MTRL:YARD STONE;AS REQUIRED;NT","REMOVE, MATERIAL: TYPE: YARD STONE; FREQUENCY: AS REQUIRED; RATE: NT","C1-ERP ACCEPTED","CATALOGUED","SERV","4","S000012357,"]
["S000014414","4727","3000030954","N","ERECT POLE:2.4 M FENCE POST;MILD STEEL","ERECT, POLE: TYPE: 2.4 M FENCE POST; MATERIAL: MILD STEEL; METHOD: PLANT AND SECURE USING CONCRETE","A5-BULK APPROVED","CATALOGUED","ALL","5","S000014414,"]
["S000014415","4727","3000030955","N","INSTL CBL COMM:10 PAIR ARMOURED","INSTALL, CABLE, COMMUNICATION: TYPE: 10 PAIR ARMOURED","A5-BULK APPROVED","CATALOGUED","ALL","4","S000014415,"]
["S000014416","4727","3000030956","N","INSTL CBL COMM:25 PAIR ARMOURED","INSTALL, CABLE, COMMUNICATION: TYPE: 25 PAIR ARMOURED","A5-BULK APPROVED","CATALOGUED","ALL","4","S000014416,"]
["S000014417","4727","3000030957","N","INSTL CBL COMM:50 PAIR ARMOURED","INSTALL, CABLE, COMMUNICATION: TYPE: 50 PAIR ARMOURED","A5-BULK APPROVED","CATALOGUED","ALL","4","S000014417,"]
["S000014418","4727","3000030958","N","INSTL CBL ELEC:4 CORE 2.5 MM2 SWA","INSTALL, CABLE, ELECTRICAL: TYPE: 4 CORE 2.5 MM2 SWA; METHOD: DIG TRENCH, LAY CABLE, CONNECT AND BACKFILL","A5-BULK APPROVED","CATALOGUED","ALL","5","S000014418,"]
["S000014419","4727","3000030959","N","INSTL CBL ELEC:4 CORE 2.5 MM2 SWA","INSTALL, CABLE, ELECTRICAL: TYPE: 4 CORE 2.5 MM2 SWA; METHOD: REMOVE TRENCH COVER, LAY CABLE, CONNECT AND REPLACE TRENCH COVER","A5-BULK APPROVED","CATALOGUED","ALL","5","S000014419,"]
["S000014420","4727","3000030960","N","INSTL CBL ELEC:4 CORE 4 MM2 SWA","INSTALL, CABLE, ELECTRICAL: TYPE: 4 CORE 4 MM2 SWA; METHOD: DIG TRENCH, LAY CABLE, CONNECT AND BACKFILL","A5-BULK APPROVED","CATALOGUED","ALL","5",{"$f":"CONCATENATE(A67,\",\")","v":"S000014420,"}]
["S000014421","4727","3000030961","N","INSTL CBL ELEC:4 CORE 4 MM2 SWA","INSTALL, CABLE, ELECTRICAL: TYPE: 4 CORE 4 MM2 SWA; METHOD: REMOVE TRENCH COVER, LAY CABLE, CONNECT AND REPLACE TRENCH COVER","A5-BULK APPROVED","CATALOGUED","ALL","5","S000014421,"]
["S000014422","4727","3000030962","N","INSTL CBL ELEC:4 CORE 16 MM2 SWA","INSTALL, CABLE, ELECTRICAL: TYPE: 4 CORE 16 MM2 SWA; METHOD: DIG TRENCH, LAY CABLE, CONNECT AND BACKFILL","A5-BULK APPROVED","CATALOGUED","ALL","5","S000014422,"]
["S000014423","4727","3000030963","N","INSTL CBL ELEC:4 CORE 16 MM2 SWA","INSTALL, CABLE, ELECTRICAL: TYPE: 4 CORE 16 MM2 SWA; METHOD: REMOVE TRENCH COVER, LAY CABLE, CONNECT AND REPLACE TRENCH COVER","A5-BULK APPROVED","CATALOGUED","ALL","5","S000014423,"]
["S000014424","4727","3000030964","N","INSTL CBL ELEC:12 CORE 2.5 MM2 SWA","INSTALL, CABLE, ELECTRICAL: TYPE: 12 CORE 2.5 MM2 SWA; METHOD: DIG TRENCH, LAY CABLE, CONNECT AND BACKFILL","A5-BULK APPROVED","CATALOGUED","ALL","5","S000014424,"]
["S000014425","4727","3000030965","N","INSTL CBL ELEC:12 CORE 2.5 MM2 SWA","INSTALL, CABLE, ELECTRICAL: TYPE: 12 CORE 2.5 MM2 SWA; METHOD: REMOVE TRENCH COVER, LAY CABLE, CONNECT AND REPLACE TRENCH COVER","A5-BULK APPROVED","CATALOGUED","ALL","5","S000014425,"]
["S000014426","4727","3000030966","N","INSTL CBL ELEC:19 CORE 2.5 MM2 SWA","INSTALL, CABLE, ELECTRICAL: TYPE: 19 CORE 2.5 MM2 SWA; METHOD: DIG TRENCH, LAY CABLE, CONNECT AND BACKFILL","A5-BULK APPROVED","CATALOGUED","ALL","5","S000014426,"]
["S000014427","4727","3000030967","N","INSTL CBL ELEC:19 CORE 2.5 MM2 SWA","INSTALL, CABLE, ELECTRICAL: TYPE: 19 CORE 2.5 MM2 SWA; METHOD: REMOVE TRENCH COVER, LAY CABLE, CONNECT AND REPLACE TRENCH COVER","A5-BULK APPROVED","CATALOGUED","ALL","5","S000014427,"]
["S000014428","4727","3000030968","N","INSTL CBL ELEC:37 CORE 2.5 MM2 SWA","INSTALL, CABLE, ELECTRICAL: TYPE: 37 CORE 2.5 MM2 SWA; METHOD: DIG TRENCH, LAY CABLE, CONNECT AND BACKFILL","A5-BULK APPROVED","CATALOGUED","ALL","5","S000014428,"]
["S000014429","4727","3000030969","N","INSTL CBL ELEC:37 CORE 2.5 MM2 SWA","INSTALL, CABLE, ELECTRICAL: TYPE: 37 CORE 2.5 MM2 SWA; METHOD: REMOVE TRENCH COVER, LAY CABLE, CONNECT AND REPLACE TRENCH COVER","A5-BULK APPROVED","CATALOGUED","ALL","5","S000014429,"]
["S000014430","4727","3000030970","N","INSTL CBL ELEC:7 CORE 2.5 MM2 SWA","INSTALL, CABLE, ELECTRICAL: TYPE: 7 CORE 2.5 MM2 SWA; METHOD: DIG TRENCH, LAY CABLE, CONNECT AND BACKFILL","A5-BULK APPROVED","CATALOGUED","ALL","5","S000014430,"]
["S000014431","4727","3000030971","N","INSTL CBL ELEC:7 CORE 2.5 MM2 SWA","INSTALL, CABLE, ELECTRICAL: TYPE: 7 CORE 2.5 MM2 SWA; METHOD: REMOVE TRENCH COVER, LAY CABLE, CONNECT AND REPLACE TRENCH COVER","A5-BULK APPROVED","CATALOGUED","ALL","5","S000014431,"]
["S000014432","4727","3000030972","N","INSTL CBL ELEC:4 CORE 70 MM2 SWA","INSTALL, CABLE, ELECTRICAL: TYPE: 4 CORE 70 MM2 SWA; METHOD: DIG TRENCH, LAY CABLE, CONNECT AND BACKFILL","A5-BULK APPROVED","CATALOGUED","ALL","5","S000014432,"]
["S000014433","4727","3000030973","N","INSTL CBL ELEC:4 CORE 70 MM2 SWA","INSTALL, CABLE, ELECTRICAL: TYPE: 4 CORE 70 MM2 SWA; METHOD: REMOVE TRENCH COVER, LAY CABLE, CONNECT AND REPLACE TRENCH COVER","A5-BULK APPROVED","CATALOGUED","ALL","5","S000014433,"]
["S000014434","4727","3000030974","N","INSTL CBL ELEC:4 CORE 90 MM2 SWA","INSTALL, CABLE, ELECTRICAL: TYPE: 4 CORE 90 MM2 SWA; METHOD: DIG TRENCH, LAY CABLE, CONNECT AND BACKFILL","A5-BULK APPROVED","CATALOGUED","ALL","5","S000014434,"]
["S000014435","4727","3000030975","N","INSTL CBL ELEC:4 CORE 90 MM2 SWA","INSTALL, CABLE, ELECTRICAL: TYPE: 4 CORE 90 MM2 SWA; METHOD: REMOVE TRENCH COVER, LAY CABLE, CONNECT AND REPLACE TRENCH COVER","A5-BULK APPROVED","CATALOGUED","ALL","5","S000014435,"]
["S000014436","4727","3000030976","N","INSTL CBL ELEC:4 CORE 120 MM2 SWA","INSTALL, CABLE, ELECTRICAL: TYPE: 4 CORE 120 MM2 SWA; METHOD: DIG TRENCH, LAY CABLE, CONNECT AND BACKFILL","A5-BULK APPROVED","CATALOGUED","ALL","5","S000014436,"]
["S000014437","4727","3000030977","N","INSTL CBL ELEC:4 CORE 120 MM2 SWA","INSTALL, CABLE, ELECTRICAL: TYPE: 4 CORE 120 MM2 SWA; METHOD: REMOVE TRENCH COVER, LAY CABLE, CONNECT AND REPLACE TRENCH COVER","A5-BULK APPROVED","CATALOGUED","ALL","5","S000014437,"]
["S000014438","4727","3000030978","N","INSTL CBL ELEC:4 CORE 190 MM2 SWA","INSTALL, CABLE, ELECTRICAL: TYPE: 4 CORE 190 MM2 SWA; METHOD: DIG TRENCH, LAY CABLE, CONNECT AND BACKFILL","A5-BULK APPROVED","CATALOGUED","ALL","5","S000014438,"]
["S000014439","4727","3000030979","N","INSTL CBL ELEC:4 CORE 190 MM2 SWA","INSTALL, CABLE, ELECTRICAL: TYPE: 4 CORE 190 MM2 SWA; METHOD: REMOVE TRENCH COVER, LAY CABLE, CONNECT AND REPLACE TRENCH COVER","A5-BULK APPROVED","CATALOGUED","ALL","5","S000014439,"]
["S000014440","4727","3000030980","N","INSTL CONCRTE PRCST:900MM BUNDWALL SECTS","INSTALL, CONCRETE, PRECAST: TYPE: 900 MM BUNDWALL SECTIONS","A5-BULK APPROVED","CATALOGUED","ALL","5","S000014440,"]
["S000014441","4727","3000030981","N","INSTL EARTH:FLAT COPPER","INSTALL, EARTHING: TYPE: FLAT COPPER","A5-BULK APPROVED","CATALOGUED","ALL","5","S000014441,"]
["S000014442","4727","3000030982","N","INSTL EARTH:ROUND COPPER","INSTALL, EARTHING: TYPE: ROUND COPPER","A5-BULK APPROVED","CATALOGUED","ALL","5","S000014442,"]
["S000014443","4727","3000030983","N","INSTL EQP ELEC:765 KV CVT","INSTALL, EQUIPMENT, ELECTRICAL: TYPE: 765 KV CVT","A5-BULK APPROVED","CATALOGUED","ALL","4","S000014443,"]
["S000014444","4727","3000030984","N","INSTL EQP ELEC:400 KV CVT","INSTALL, EQUIPMENT, ELECTRICAL: TYPE: 400 KV CVT","A5-BULK APPROVED","CATALOGUED","ALL","4","S000014444,"]
["S000014445","4727","3000030985","N","INSTL EQP ELEC:275 KV CVT","INSTALL, EQUIPMENT, ELECTRICAL: TYPE: 275 KV CVT","A5-BULK APPROVED","CATALOGUED","ALL","4","S000014445,"]
["S000014446","4727","3000030986","N","INSTL EQP ELEC:220 KV CVT","INSTALL, EQUIPMENT, ELECTRICAL: TYPE: 220 KV CVT","A5-BULK APPROVED","CATALOGUED","ALL","4","S000014446,"]
["S000014447","4727","3000030987","N","INSTL EQP ELEC:132 KV CVT","INSTALL, EQUIPMENT, ELECTRICAL: TYPE: 132 KV CVT","A5-BULK APPROVED","CATALOGUED","ALL","4","S000014447,"]
["S000014448","4727","3000030988","N","INSTL EQP ELEC:66 KV CVT","INSTALL, EQUIPMENT, ELECTRICAL: TYPE: 66 KV CVT","A5-BULK APPROVED","CATALOGUED","ALL","4","S000014448,"]
["S000014449","4727","3000030989","N","INSTL EQP ELEC:765 KV CT/VT","INSTALL, EQUIPMENT, ELECTRICAL: TYPE: 765 KV CT/VT","A5-BULK APPROVED","CATALOGUED","ALL","4","S000014449,"]
["S000014450","4727","3000030990","N","INSTL EQP ELEC:400 KV CT/VT","INSTALL, EQUIPMENT, ELECTRICAL: TYPE: 400 KV CT/VT","A5-BULK APPROVED","CATALOGUED","ALL","4","S000014450,"]
["S000014451","4727","3000030991","N","INSTL EQP ELEC:275 KV CT/VT","INSTALL, EQUIPMENT, ELECTRICAL: TYPE: 275 KV CT/VT","A5-BULK APPROVED","CATALOGUED","ALL","4","S000014451,"]
["S000014452","4727","3000030992","N","INSTL EQP ELEC:220 KV CT/VT","INSTALL, EQUIPMENT, ELECTRICAL: TYPE: 220 KV CT/VT","A5-BULK APPROVED","CATALOGUED","ALL","4","S000014452,"]
["S000014453","4727","3000030993","N","INSTL EQP ELEC:132 KV CT/VT","INSTALL, EQUIPMENT, ELECTRICAL: TYPE: 132 KV CT/VT","A5-BULK APPROVED","CATALOGUED","ALL","4","S000014453,"]
["S000014454","4727","3000030994","N","INSTL EQP ELEC:66 KV CT/VT","INSTALL, EQUIPMENT, ELECTRICAL: TYPE: 66 KV CT/VT","A5-BULK APPROVED","CATALOGUED","ALL","4","S000014454,"]
["S000014455","4727","3000030995","N","INSTL EQP ELEC:33 KV CT/VT","INSTALL, EQUIPMENT, ELECTRICAL: TYPE: 33 KV CT/VT","A5-BULK APPROVED","CATALOGUED","ALL","4","S000014455,"]
["S000014456","4727","3000030996","N","INSTL EQP ELEC:22 KV CT/VT","INSTALL, EQUIPMENT, ELECTRICAL: TYPE: 22 KV CT/VT","A5-BULK APPROVED","CATALOGUED","ALL","4","S000014456,"]
["S000014457","4727","3000030997","N","INSTL EQP ELEC:765 KV BREAKER","INSTALL, EQUIPMENT, ELECTRICAL: TYPE: 765 KV BREAKER","A5-BULK APPROVED","CATALOGUED","ALL","4","S000014457,"]
["S000014458","4727","3000030998","N","INSTL EQP ELEC:400 KV BREAKER","INSTALL, EQUIPMENT, ELECTRICAL: TYPE: 400 KV BREAKER","A5-BULK APPROVED","CATALOGUED","ALL","4","S000014458,"]
["S000014459","4727","3000030999","N","INSTL EQP ELEC:275 KV BREAKER","INSTALL, EQUIPMENT, ELECTRICAL: TYPE: 275 KV BREAKER","A5-BULK APPROVED","CATALOGUED","ALL","4","S000014459,"]
["S000014460","4727","3000031000","N","INSTL EQP ELEC:132 KV BREAKER","INSTALL, EQUIPMENT, ELECTRICAL: TYPE: 132 KV BREAKER","A5-BULK APPROVED","CATALOGUED","ALL","4","S000014460,"]
["S000014461","4727","3000031001","N","INSTL EQP ELEC:44 KV BREAKER","INSTALL, EQUIPMENT, ELECTRICAL: TYPE: 44 KV BREAKER","A5-BULK APPROVED","CATALOGUED","ALL","4","S000014461,"]
["S000014462","4727","3000031002","N","INSTL EQP ELEC:66 KV BREAKER","INSTALL, EQUIPMENT, ELECTRICAL: TYPE: 66 KV BREAKER","A5-BULK APPROVED","CATALOGUED","ALL","4","S000014462,"]
["S000014463","4727","3000031003","N","INSTL EQP ELEC:22 KV BREAKER","INSTALL, EQUIPMENT, ELECTRICAL: TYPE: 22 KV BREAKER","A5-BULK APPROVED","CATALOGUED","ALL","4","S000014463,"]
["S000014464","4727","3000031004","N","INSTL EQP ELEC:11 KV BREAKER","INSTALL, EQUIPMENT, ELECTRICAL: TYPE: 11 KV BREAKER","A5-BULK APPROVED","CATALOGUED","ALL","4","S000014464,"]
["S000014465","4727","3000031005","N","INSTL EQP ELEC:BREAKER 765 KV, DEAD TANK","INSTALL, EQUIPMENT, ELECTRICAL: TYPE: BREAKER 765 KV, DEAD TANK","A5-BULK APPROVED","CATALOGUED","ALL","4","S000014465,"]
["S000014466","4727","3000031006","N","INSTL EQP ELEC:BREAKER 765 KV, LIVE TANK","INSTALL, EQUIPMENT, ELECTRICAL: TYPE: BREAKER 765 KV, LIVE TANK","A5-BULK APPROVED","CATALOGUED","ALL","4","S000014466,"]
["S000014467","4727","3000031007","N","INSTL EQP ELEC:33 KV BREAKER","INSTALL, EQUIPMENT, ELECTRICAL: TYPE: 33 KV BREAKER","A5-BULK APPROVED","CATALOGUED","ALL","4","S000014467,"]
["S000014468","4727","3000031008","N","INSTL EQP ELEC:765 KV SURGE ARRESTOR","INSTALL, EQUIPMENT, ELECTRICAL: TYPE: 765 KV SURGE ARRESTOR","A5-BULK APPROVED","CATALOGUED","ALL","4","S000014468,"]
["S000014469","4727","3000031009","N","INSTL EQP ELEC:400 KV SURGE ARRESTOR","INSTALL, EQUIPMENT, ELECTRICAL: TYPE: 400 KV SURGE ARRESTOR","A5-BULK APPROVED","CATALOGUED","ALL","4","S000014469,"]
["S000014470","4727","3000031010","N","INSTL EQP ELEC:275 KV SURGE ARRESTOR","INSTALL, EQUIPMENT, ELECTRICAL: TYPE: 275 KV SURGE ARRESTOR","A5-BULK APPROVED","CATALOGUED","ALL","4","S000014470,"]
["S000014471","4727","3000031011","N","INSTL EQP ELEC:132 KV SURGE ARRESTOR","INSTALL, EQUIPMENT, ELECTRICAL: TYPE: 132 KV SURGE ARRESTOR","A5-BULK APPROVED","CATALOGUED","ALL","4","S000014471,"]
["S000014472","4727","3000031012","N","INSTL EQP ELEC:AUXILLIARY TRANSFORMER","INSTALL, EQUIPMENT, ELECTRICAL: TYPE: AUXILLIARY TRANSFORMER","A5-BULK APPROVED","CATALOGUED","ALL","4","S000014472,"]
["S000014473","4727","3000031013","N","INSTL EQP ELEC:REACTOR","INSTALL, EQUIPMENT, ELECTRICAL: TYPE: REACTOR","A5-BULK APPROVED","CATALOGUED","ALL","4","S000014473,"]
["S000014474","4727","3000031014","N","INSTL EQP ELEC:REACTOR, AIR CORE","INSTALL, EQUIPMENT, ELECTRICAL: TYPE: REACTOR, AIR CORE","A5-BULK APPROVED","CATALOGUED","ALL","4","S000014474,"]
["S000014475","4727","3000031015","N","INSTL EQP ELEC:765 KV ISOLATOR","INSTALL, EQUIPMENT, ELECTRICAL: TYPE: 765 KV ISOLATOR","A5-BULK APPROVED","CATALOGUED","ALL","4","S000014475,"]
["S000014476","4727","3000031016","N","INSTL EQP ELEC:400 KV ISOLATOR","INSTALL, EQUIPMENT, ELECTRICAL: TYPE: 400 KV ISOLATOR","A5-BULK APPROVED","CATALOGUED","ALL","4","S000014476,"]
["S000014477","4727","3000031017","N","INSTL EQP ELEC:275 KV ISOLATOR","INSTALL, EQUIPMENT, ELECTRICAL: TYPE: 275 KV ISOLATOR","A5-BULK APPROVED","CATALOGUED","ALL","4","S000014477,"]
["S000014478","4727","3000031018","N","INSTL EQP ELEC:132 KV LINE TRAP","INSTALL, EQUIPMENT, ELECTRICAL: TYPE: 132 KV LINE TRAP","A5-BULK APPROVED","CATALOGUED","ALL","4","S000014478,"]
["S000014479","4727","3000031019","N","INSTL EQP ELEC:220 KV LINE TRAP","INSTALL, EQUIPMENT, ELECTRICAL: TYPE: 220 KV LINE TRAP","A5-BULK APPROVED","CATALOGUED","ALL","4","S000014479,"]
["S000014480","4727","3000031020","N","INSTL EQP ELEC:275 KV LINE TRAP","INSTALL, EQUIPMENT, ELECTRICAL: TYPE: 275 KV LINE TRAP","A5-BULK APPROVED","CATALOGUED","ALL","4","S000014480,"]
["S000014481","4727","3000031021","N","INSTL EQP ELEC:400 KV LINE TRAP","INSTALL, EQUIPMENT, ELECTRICAL: TYPE: 400 KV LINE TRAP","A5-BULK APPROVED","CATALOGUED","ALL","4","S000014481,"]
["S000014482","4727","3000031022","N","INSTL EQP ELEC:765 KV LINE TRAP","INSTALL, EQUIPMENT, ELECTRICAL: TYPE: 765 KV LINE TRAP","A5-BULK APPROVED","CATALOGUED","ALL","4","S000014482,"]
["S000014483","4727","3000031023","N","INSTL EQP ELEC:132 KV COMP INSUL STRING","INSTALL, EQUIPMENT, ELECTRICAL: TYPE: 132 KV COMP INSUL STRING","A5-BULK APPROVED","CATALOGUED","ALL","4","S000014483,"]
["S000014484","4727","3000031024","N","INSTL EQP ELEC:220 KV COMP INSUL STRING","INSTALL, EQUIPMENT, ELECTRICAL: TYPE: 220 KV COMP INSUL STRING","A5-BULK APPROVED","CATALOGUED","ALL","4",{"$f":"CONCATENATE(A131,\",\")","v":"S000014484,"}]
["S000014485","4727","3000031025","N","INSTL EQP ELEC:275 KV COMP INSUL STRING","INSTALL, EQUIPMENT, ELECTRICAL: TYPE: 275 KV COMP INSUL STRING","A5-BULK APPROVED","CATALOGUED","ALL","4","S000014485,"]
["S000014486","4727","3000031026","N","INSTL EQP ELEC:400 KV COMP INSUL STRING","INSTALL, EQUIPMENT, ELECTRICAL: TYPE: 400 KV COMP INSUL STRING","A5-BULK APPROVED","CATALOGUED","ALL","4","S000014486,"]
["S000014487","4727","3000031027","N","INSTL EQP ELEC:765 KV COMP INSUL STRING","INSTALL, EQUIPMENT, ELECTRICAL: TYPE: 765 KV COMP INSUL STRING","A5-BULK APPROVED","CATALOGUED","ALL","4","S000014487,"]
["S000014488","4727","3000031028","N","INSTL EQP ELEC:132 KV GLASS INSUL STRING","INSTALL, EQUIPMENT, ELECTRICAL: TYPE: 132 KV GLASS INSUL STRING","A5-BULK APPROVED","CATALOGUED","ALL","4","S000014488,"]
["S000014489","4727","3000031029","N","INSTL EQP ELEC:220 KV GLASS INSUL STRING","INSTALL, EQUIPMENT, ELECTRICAL: TYPE: 220 KV GLASS INSUL STRING","A5-BULK APPROVED","CATALOGUED","ALL","4","S000014489,"]
["S000014490","4727","3000031030","N","INSTL EQP ELEC:275 KV GLASS INSUL STRING","INSTALL, EQUIPMENT, ELECTRICAL: TYPE: 275 KV GLASS INSUL STRING","A5-BULK APPROVED","CATALOGUED","ALL","4","S000014490,"]
["S000014491","4727","3000031031","N","INSTL EQP ELEC:400 KV GLASS INSUL STRING","INSTALL, EQUIPMENT, ELECTRICAL: TYPE: 400 KV GLASS INSUL STRING","A5-BULK APPROVED","CATALOGUED","ALL","4","S000014491,"]
["S000014492","4727","3000031032","N","INSTL EQP ELEC:765 KV GLASS INSUL STRING","INSTALL, EQUIPMENT, ELECTRICAL: TYPE: 765 KV GLASS INSUL STRING","A5-BULK APPROVED","CATALOGUED","ALL","4","S000014492,"]
["S000014493","4727","3000031033","N","RMV EQP ELEC:765 KV CVT","REMOVE, EQUIPMENT, ELECTRICAL: TYPE: 765 KV CVT","A5-BULK APPROVED","CATALOGUED","ALL","4","S000014493,"]
["S000014494","4727","3000031034","N","RMV EQP ELEC:400 KV CVT","REMOVE, EQUIPMENT, ELECTRICAL: TYPE: 400 KV CVT","A5-BULK APPROVED","CATALOGUED","ALL","4","S000014494,"]
["S000014495","4727","3000031035","N","RMV EQP ELEC:275 KV CVT","REMOVE, EQUIPMENT, ELECTRICAL: TYPE: 275 KV CVT","A5-BULK APPROVED","CATALOGUED","ALL","4","S000014495,"]
["S000014496","4727","3000031036","N","RMV EQP ELEC:220 KV CVT","REMOVE, EQUIPMENT, ELECTRICAL: TYPE: 220 KV CVT","A5-BULK APPROVED","CATALOGUED","ALL","4","S000014496,"]
["S000014497","4727","3000031037","N","RMV EQP ELEC:132 KV CVT","REMOVE, EQUIPMENT, ELECTRICAL: TYPE: 132 KV CVT","A5-BULK APPROVED","CATALOGUED","ALL","4","S000014497,"]
["S000014498","4727","3000031038","N","RMV EQP ELEC:66 KV CVT","REMOVE, EQUIPMENT, ELECTRICAL: TYPE: 66 KV CVT","A5-BULK APPROVED","CATALOGUED","ALL","4","S000014498,"]
["S000014499","4727","3000031039","N","RMV EQP ELEC:765 KV CT/VT","REMOVE, EQUIPMENT, ELECTRICAL: TYPE: 765 KV CT/VT","A5-BULK APPROVED","CATALOGUED","ALL","4","S000014499,"]
["S000014500","4727","3000031040","N","RMV EQP ELEC:400 KV CT/VT","REMOVE, EQUIPMENT, ELECTRICAL: TYPE: 400 KV CT/VT","A5-BULK APPROVED","CATALOGUED","ALL","4","S000014500,"]
["S000014501","4727","3000031041","N","RMV EQP ELEC:275 KV CT/VT","REMOVE, EQUIPMENT, ELECTRICAL: TYPE: 275 KV CT/VT","A5-BULK APPROVED","CATALOGUED","ALL","4","S000014501,"]
["S000014502","4727","3000031042","N","RMV EQP ELEC:220 KV CT/VT","REMOVE, EQUIPMENT, ELECTRICAL: TYPE: 220 KV CT/VT","A5-BULK APPROVED","CATALOGUED","ALL","4","S000014502,"]
["S000014503","4727","3000031043","N","RMV EQP ELEC:132 KV CT/VT","REMOVE, EQUIPMENT, ELECTRICAL: TYPE: 132 KV CT/VT","A5-BULK APPROVED","CATALOGUED","ALL","4","S000014503,"]
["S000014504","4727","3000031044","N","RMV EQP ELEC:66 KV CT/VT","REMOVE, EQUIPMENT, ELECTRICAL: TYPE: 66 KV CT/VT","A5-BULK APPROVED","CATALOGUED","ALL","4","S000014504,"]
["S000014505","4727","3000031045","N","RMV EQP ELEC:33 KV CT/VT","REMOVE, EQUIPMENT, ELECTRICAL: TYPE: 33 KV CT/VT","A5-BULK APPROVED","CATALOGUED","ALL","4","S000014505,"]
["S000014506","4727","3000031046","N","RMV EQP ELEC:22 KV CT/VT","REMOVE, EQUIPMENT, ELECTRICAL: TYPE: 22 KV CT/VT","A5-BULK APPROVED","CATALOGUED","ALL","4","S000014506,"]
["S000014507","4727","3000031047","N","RMV EQP ELEC:765 KV BREAKER","REMOVE, EQUIPMENT, ELECTRICAL: TYPE: 765 KV BREAKER","A5-BULK APPROVED","CATALOGUED","ALL","4","S000014507,"]
["S000014508","4727","3000031048","N","RMV EQP ELEC:400 KV BREAKER","REMOVE, EQUIPMENT, ELECTRICAL: TYPE: 400 KV BREAKER","A5-BULK APPROVED","CATALOGUED","ALL","4","S000014508,"]
["S000014509","4727","3000031049","N","RMV EQP ELEC:275 KV BREAKER","REMOVE, EQUIPMENT, ELECTRICAL: TYPE: 275 KV BREAKER","A5-BULK APPROVED","CATALOGUED","ALL","4","S000014509,"]
["S000014510","4727","3000031050","N","RMV EQP ELEC:132 KV BREAKER","REMOVE, EQUIPMENT, ELECTRICAL: TYPE: 132 KV BREAKER","A5-BULK APPROVED","CATALOGUED","ALL","4","S000014510,"]
["S000014511","4727","3000031051","N","RMV EQP ELEC:44 KV BREAKER","REMOVE, EQUIPMENT, ELECTRICAL: TYPE: 44 KV BREAKER","A5-BULK APPROVED","CATALOGUED","ALL","4","S000014511,"]
["S000014512","4727","3000031052","N","RMV EQP ELEC:66 KV BREAKER","REMOVE, EQUIPMENT, ELECTRICAL: TYPE: 66 KV BREAKER","A5-BULK APPROVED","CATALOGUED","ALL","4","S000014512,"]
["S000014513","4727","3000031053","N","RMV EQP ELEC:22 KV BREAKER","REMOVE, EQUIPMENT, ELECTRICAL: TYPE: 22 KV BREAKER","A5-BULK APPROVED","CATALOGUED","ALL","4","S000014513,"]
["S000014514","4727","3000031054","N","RMV EQP ELEC:11 KV BREAKER","REMOVE, EQUIPMENT, ELECTRICAL: TYPE: 11 KV BREAKER","A5-BULK APPROVED","CATALOGUED","ALL","4","S000014514,"]
["S000014515","4727","3000031055","N","RMV EQP ELEC:BREAKER 765 KV, DEAD TANK","REMOVE, EQUIPMENT, ELECTRICAL: TYPE: BREAKER 765 KV, DEAD TANK","A5-BULK APPROVED","CATALOGUED","ALL","4","S000014515,"]
["S000014516","4727","3000031056","N","RMV EQP ELEC:BREAKER 765 KV, LIVE TANK","REMOVE, EQUIPMENT, ELECTRICAL: TYPE: BREAKER 765 KV, LIVE TANK","A5-BULK APPROVED","CATALOGUED","ALL","4","S000014516,"]
["S000014517","4727","3000031057","N","RMV EQP ELEC:33 KV BREAKER","REMOVE, EQUIPMENT, ELECTRICAL: TYPE: 33 KV BREAKER","A5-BULK APPROVED","CATALOGUED","ALL","4","S000014517,"]
["S000014518","4727","3000031058","N","RMV EQP ELEC:765 KV SURGE ARRESTOR","REMOVE, EQUIPMENT, ELECTRICAL: TYPE: 765 KV SURGE ARRESTOR","A5-BULK APPROVED","CATALOGUED","ALL","4","S000014518,"]
["S000014519","4727","3000031059","N","RMV EQP ELEC:400 KV SURGE ARRESTOR","REMOVE, EQUIPMENT, ELECTRICAL: TYPE: 400 KV SURGE ARRESTOR","A5-BULK APPROVED","CATALOGUED","ALL","4","S000014519,"]
["S000014520","4727","3000031060","N","RMV EQP ELEC:275 KV SURGE ARRESTOR","REMOVE, EQUIPMENT, ELECTRICAL: TYPE: 275 KV SURGE ARRESTOR","A5-BULK APPROVED","CATALOGUED","ALL","4","S000014520,"]
["S000014521","4727","3000031061","N","RMV EQP ELEC:AUXILLIARY TRANSFORMER","REMOVE, EQUIPMENT, ELECTRICAL: TYPE: AUXILLIARY TRANSFORMER","A5-BULK APPROVED","CATALOGUED","ALL","4","S000014521,"]
["S000014522","4727","3000031062","N","RMV EQP ELEC:REACTOR","REMOVE, EQUIPMENT, ELECTRICAL: TYPE: REACTOR","A5-BULK APPROVED","CATALOGUED","ALL","4","S000014522,"]
["S000014523","4727","3000031063","N","RMV EQP ELEC:REACTOR, AIR CORE","REMOVE, EQUIPMENT, ELECTRICAL: TYPE: REACTOR, AIR CORE","A5-BULK APPROVED","CATALOGUED","ALL","4","S000014523,"]
["S000014524","4727","3000031064","N","RMV EQP ELEC:765 KV ISOLATOR","REMOVE, EQUIPMENT, ELECTRICAL: TYPE: 765 KV ISOLATOR","A5-BULK APPROVED","CATALOGUED","ALL","4","S000014524,"]
["S000014525","4727","3000031065","N","RMV EQP ELEC:400 KV ISOLATOR","REMOVE, EQUIPMENT, ELECTRICAL: TYPE: 400 KV ISOLATOR","A5-BULK APPROVED","CATALOGUED","ALL","4","S000014525,"]
["S000014526","4727","3000031066","N","RMV EQP ELEC:275 KV ISOLATOR","REMOVE, EQUIPMENT, ELECTRICAL: TYPE: 275 KV ISOLATOR","A5-BULK APPROVED","CATALOGUED","ALL","4","S000014526,"]
["S000014527","4727","3000031067","N","RMV EQP ELEC:132 KV LINE TRAP","REMOVE, EQUIPMENT, ELECTRICAL: TYPE: 132 KV LINE TRAP","A5-BULK APPROVED","CATALOGUED","ALL","4","S000014527,"]
["S000014528","4727","3000031068","N","RMV EQP ELEC:220 KV LINE TRAP","REMOVE, EQUIPMENT, ELECTRICAL: TYPE: 220 KV LINE TRAP","A5-BULK APPROVED","CATALOGUED","ALL","4","S000014528,"]
["S000014529","4727","3000031069","N","RMV EQP ELEC:275 KV LINE TRAP","REMOVE, EQUIPMENT, ELECTRICAL: TYPE: 275 KV LINE TRAP","A5-BULK APPROVED","CATALOGUED","ALL","4","S000014529,"]
["S000014530","4727","3000031070","N","RMV EQP ELEC:400 KV LINE TRAP","REMOVE, EQUIPMENT, ELECTRICAL: TYPE: 400 KV LINE TRAP","A5-BULK APPROVED","CATALOGUED","ALL","4","S000014530,"]
["S000014531","4727","3000031071","N","RMV EQP ELEC:765 KV LINE TRAP","REMOVE, EQUIPMENT, ELECTRICAL: TYPE: 765 KV LINE TRAP","A5-BULK APPROVED","CATALOGUED","ALL","4","S000014531,"]
["S000014532","4727","3000031072","N","RMV EQP ELEC:132 KV COMP INSUL STRING","REMOVE, EQUIPMENT, ELECTRICAL: TYPE: 132 KV COMP INSUL STRING","A5-BULK APPROVED","CATALOGUED","ALL","4","S000014532,"]
["S000014533","4727","3000031073","N","RMV EQP ELEC:220 KV COMP INSUL STRING","REMOVE, EQUIPMENT, ELECTRICAL: TYPE: 220 KV COMP INSUL STRING","A5-BULK APPROVED","CATALOGUED","ALL","4","S000014533,"]
["S000014534","4727","3000031074","N","RMV EQP ELEC:275 KV COMP INSUL STRING","REMOVE, EQUIPMENT, ELECTRICAL: TYPE: 275 KV COMP INSUL STRING","A5-BULK APPROVED","CATALOGUED","ALL","4","S000014534,"]
["S000014535","4727","3000031075","N","RMV EQP ELEC:400 KV COMP INSUL STRING","REMOVE, EQUIPMENT, ELECTRICAL: TYPE: 400 KV COMP INSUL STRING","A5-BULK APPROVED","CATALOGUED","ALL","4","S000014535,"]
["S000014536","4727","3000031076","N","RMV EQP ELEC:765 KV COMP INSUL STRING","REMOVE, EQUIPMENT, ELECTRICAL: TYPE: 765 KV COMP INSUL STRING","A5-BULK APPROVED","CATALOGUED","ALL","4","S000014536,"]
["S000014537","4727","3000031077","N","RMV EQP ELEC:132 KV GLASS INSUL STRING","REMOVE, EQUIPMENT, ELECTRICAL: TYPE: 132 KV GLASS INSUL STRING","A5-BULK APPROVED","CATALOGUED","ALL","4","S000014537,"]
["S000014538","4727","3000031078","N","RMV EQP ELEC:220 KV GLASS INSUL STRING","REMOVE, EQUIPMENT, ELECTRICAL: TYPE: 220 KV GLASS INSUL STRING","A5-BULK APPROVED","CATALOGUED","ALL","4","S000014538,"]
["S000014539","4727","3000031079","N","RMV EQP ELEC:275 KV GLASS INSUL STRING","REMOVE, EQUIPMENT, ELECTRICAL: TYPE: 275 KV GLASS INSUL STRING","A5-BULK APPROVED","CATALOGUED","ALL","4","S000014539,"]
["S000014540","4727","3000031080","N","RMV EQP ELEC:400 KV GLASS INSUL STRING","REMOVE, EQUIPMENT, ELECTRICAL: TYPE: 400 KV GLASS INSUL STRING","A5-BULK APPROVED","CATALOGUED","ALL","4","S000014540,"]
["S000014541","4727","3000031081","N","RMV EQP ELEC:765 KV GLASS INSUL STRING","REMOVE, EQUIPMENT, ELECTRICAL: TYPE: 765 KV GLASS INSUL STRING","A5-BULK APPROVED","CATALOGUED","ALL","4","S000014541,"]
["S000014542","4727","3000031082","N","RENT TRCK CGO:CRANE 21M HORIZ REACH;5 T","RENT, TRUCK, CARGO: TYPE: CRANE 21M HORIZ REACH; LOAD RATING: 5 T; CRANE TO BE ADAPTABLE FOR PERSONNEL LIFT BUCKET","A5-BULK APPROVED","CATALOGUED","TRSP","5","S000014542,"]
["S000014543","4727","3000031083","N","RENT TRCK CGO:CRANE 15M HORIZ REACH;5 T","RENT, TRUCK, CARGO: TYPE: CRANE 15M HORIZ REACH; LOAD RATING: 5 T; CRANE TO BE ADAPTABLE FOR PERSONNEL LIFT BUCKET","A5-BULK APPROVED","CATALOGUED","TRSP","5","S000014543,"]
["S000014544","4727","3000031084","N","RENT TRCK CGO:CRANE 15M HORIZ REACH;30 T","RENT, TRUCK, CARGO: TYPE: CRANE 15M HORIZ REACH; LOAD RATING: 30 T; CRANE TO BE ADAPTABLE FOR PERSONNEL LIFT BUCKET","A5-BULK APPROVED","CATALOGUED","TRSP","5","S000014544,"]
["S000014545","4727","3000031085","N","RENT TRCK CGO:CRANE 21M HORIZ REACH;50 T","RENT, TRUCK, CARGO: TYPE: CRANE 21M HORIZ REACH; LOAD RATING: 50 T; CRANE TO BE ADAPTABLE FOR PERSONNEL LIFT BUCKET","A5-BULK APPROVED","CATALOGUED","TRSP","5","S000014545,"]
["S000014546","4727","3000031086","N","STRINGING COND:DOUBLE BULL;VARIOUS","STRINGING, CONDUCTOR: TYPE: DOUBLE BULL; DIMENSIONS: VARIOUS; METHOD: MANUAL","A5-BULK APPROVED","CATALOGUED","ALL","5","S000014546,"]
["S000014547","4727","3000031087","N","STRINGING COND:TRIPPLE BULL;VARIOUS","STRINGING, CONDUCTOR: TYPE: TRIPPLE BULL; DIMENSIONS: VARIOUS; METHOD: MANUAL","A5-BULK APPROVED","CATALOGUED","ALL","5","S000014547,"]
["S000014548","4727","3000031088","N","STRINGING COND:DOUBLE CENTIPEDE;VARIOUS","STRINGING, CONDUCTOR: TYPE: DOUBLE CENTIPEDE; DIMENSIONS: VARIOUS; METHOD: MANUAL","A5-BULK APPROVED","CATALOGUED","ALL","5",{"$f":"CONCATENATE(A195,\",\")","v":"S000014548,"}]
["S000014549","4727","3000031089","N","STRINGING COND:TRIPPLE CENTIPEDE;VARIOUS","STRINGING, CONDUCTOR: TYPE: TRIPPLE CENTIPEDE; DIMENSIONS: VARIOUS; METHOD: MANUAL","A5-BULK APPROVED","CATALOGUED","ALL","5","S000014549,"]
["S000014550","4727","3000031090","N","WELD MTLC:CU EARTHING;BRAZING","WELD, METALLIC: TYPE: CU EARTHING; METHOD: BRAZING; PREPERATION: ABRASIVE CLEANING","A5-BULK APPROVED","CATALOGUED","ALL","5","S000014550,"]
["STS-012770","5200","3000016527","N","RMV EQP ELEC:132KV SURGE ARRESTER","REMOVE, EQUIPMENT, ELECTRICAL: TYPE: 132KV SURGE ARRESTER; METHOD: PHYSICAL AND MECHANICAL; OUTDOOR CIRCUIT BREAKERS","C1-ERP ACCEPTED","CATALOGUED","EQUI","5","STS-012770,"]
["STS-012773","5200","3000016550","N","RMV EQP ELEC:66KV SURGE ARRESTER","REMOVE, EQUIPMENT, ELECTRICAL: TYPE: 66KV SURGE ARRESTER; METHOD: PHYSICAL AND MECHANICAL; OUTDOOR CIRCUIT BREAKERS","C1-ERP ACCEPTED","CATALOGUED","EQUI","5","STS-012773,"]
["STS-012775","5200","3000016536","N","RMV EQP ELEC:33KV SURGE ARRESTER","REMOVE, EQUIPMENT, ELECTRICAL: TYPE: 33KV SURGE ARRESTER; METHOD: PHYSICAL AND MECHANICAL; OUTDOOR CIRCUIT BREAKERS","C1-ERP ACCEPTED","CATALOGUED","EQUI","5","STS-012775,"]
["STS-012776","5200","3000016586","N","RMV EQP ELEC:22KV SURGE ARRESTER","REMOVE, EQUIPMENT, ELECTRICAL: TYPE: 22KV SURGE ARRESTER; METHOD: PHYSICAL AND MECHANICAL; OUTDOOR CIRCUIT BREAKERS","C1-ERP ACCEPTED","CATALOGUED","EQUI","5","STS-012776,"]
["STS-018442","5200","3000019357","N","INSTL EQP ELEC:D-DT 6302","INSTALL, EQUIPMENT, ELECTRICAL: TYPE: 132KV HAND OPERATED ISOLATOR; STANDARD: D-DT 6302; METHOD: PHYSICAL AND MECHANICAL","C1-ERP ACCEPTED","CATALOGUED","ALL","5","STS-018442,"]
["STS-018445","5200","3000019429","N","INSTL EQP ELEC:D-DT 6152","INSTALL, EQUIPMENT, ELECTRICAL: TYPE: 66KV HAND OPERATED ISOLATOR; STANDARD: D-DT 6152; METHOD: PHYSICAL AND MECHANICAL","C1-ERP ACCEPTED","CATALOGUED","ALL","5","STS-018445,"]
["STS-018448","5200","3000019362","N","INSTL EQP ELEC:D-DT 6157","INSTALL, EQUIPMENT, ELECTRICAL: TYPE: 33KV HAND OPERATED ISOLATOR; STANDARD: D-DT 6157; METHOD: PHYSICAL AND MECHANICAL","C1-ERP ACCEPTED","CATALOGUED","ALL","5","STS-018448,"]
["STS-018449","5200","3000019363","N","INSTL EQP ELEC:D-DT 6154","INSTALL, EQUIPMENT, ELECTRICAL: TYPE: 22KV HAND OPERATED ISOLATOR; STANDARD: D-DT 6154; METHOD: PHYSICAL AND MECHANICAL","C1-ERP ACCEPTED","CATALOGUED","ALL","5","STS-018449,"]
["STS-018470","5200","3000019373","N","INSTL EQP ELEC:66KV SURGE ARRESTER","INSTALL, EQUIPMENT, ELECTRICAL: TYPE: 66KV SURGE ARRESTER; STANDARD: D-DT 6212; METHOD: PHYSICAL AND MECHANICAL","C1-ERP ACCEPTED","CATALOGUED","ALL","5","STS-018470,"]
["STS-018472","5200","3000019375","N","INSTL EQP ELEC:33KV SURGE ARRESTER","INSTALL, EQUIPMENT, ELECTRICAL: TYPE: 33KV SURGE ARRESTER; STANDARD: D-DT 6214; METHOD: PHYSICAL AND MECHANICAL","C1-ERP ACCEPTED","CATALOGUED","ALL","5","STS-018472,"]
["STS-018474","5200","3000019376","N","INSTL EQP ELEC:22KV SURGE ARRESTER","INSTALL, EQUIPMENT, ELECTRICAL: TYPE: 22KV SURGE ARRESTER; STANDARD: D-DT 6215; METHOD: PHYSICAL AND MECHANICAL","C1-ERP ACCEPTED","CATALOGUED","ALL","5","STS-018474,"]
["STS-032424","4727","3000025163","N","LAY MTRL:YARD STONE;26 MM","LAY, MATERIAL: TYPE: YARD STONE; DIMENSIONS: 26 MM","C1-ERP ACCEPTED","CATALOGUED","ALL","4","STS-032424,"]
["STS-032425","4727","3000025164","N","LAY MTRL:YARD STONE;36/37 MM","LAY, MATERIAL: TYPE: YARD STONE; DIMENSIONS: 36/37  MM","C1-ERP ACCEPTED","CATALOGUED","ALL","4","STS-032425,"]
["STS-036148","4727","3000026710","N","INSTL EQP MECH:GATE MOTOR","INSTALL, EQUIPMENT, MECHANICAL: TYPE: GATE MOTOR; METHOD: INSTALL GATE MOTOR FOR EXISTING GATES AND CONNECT TO ELECTRICAL SUPPLY; STANDARD: GATES MOTOR MUST OPERATE EXISTING GATES AS PER ESKOM AND OHS ACT STANDARDS","C1-ERP ACCEPTED","CATALOGUED","EQUI","5","STS-036148,"]

{"sheet":"BOQ","index":1,"n_rows":234,"n_cols":7,"rows_kept":234}
["Item No.","Description","unit ","Non-committal  Quantity","Rate R.","Price R.","Totals"]
[1,"General"]
["1.1","Complying with health and safety","Item",1]
["1.2","Workshop (fabrication)","Item",1]
["1.3","Supervision per day","day",1]
["1.4","Plant Hire - actual cost + 5% handling fee","%",5]
["1.5","Material supply - actual cost + 5% handling fee","%",5]
["1.6","Specialist tools and equipment hire - actual +5% handling fee","%",5]
["1.7","LDV Transport 4 x 2","km",1103]
["1.8","LDV Transport 4 x 4","km",1123]
["1.9","Transport for labour (minibus 13)","km",1225]
["1.10","Transport for labour (minibus 23)","km",1222]
["1.11","6 m³ Tipper Truck","km",1223]
["1.12","10m³ Tipper Truck","km",1223]
["1.13","Transport Truck 2-4 ton","km",1200]
["1.14","Transport Truck 5-8 ton","km",1200]
["1.15","Transport Truck 5-8 ton with crane","km",1200]
["1.16","Transport Truck 9-14 ton","km",1200]
["1.17","Transport Truck 9-14 ton with crane","km",1200]
["1.18","Transport truck >22 ton","km",1200]
[null,"Totals",{"$nulls":4},{"$f":"SUM(F3:F20)","v":{"v":0,"d":"R0.00"}}]
[2,"Civils"]
["2.1","Trenching Excavation and filling","m³",60]
["2.2","Remove and reinstate yard stone","m²",60]
["2.3","25Mpa concrete work","m³",60]
["2.4","encapsulate with conductive concrete","m³",60]
["2.5","Supply and Mount Bollard","each",40]
["2.6","Anchor copper straps in croncrete","m",60]
["2.7","Lifting an replacing trench covers","each",100]
["2.8","Painting of copper straps","m",200]
["2.9","Construct a bundwall with use of concrete slabs","m",200]
["2.10","Construct a bundwall","m²",100]
["2.11","Remove stone","m²",120]
["2.12","Lay yard stone","m²",120]
["2.13","Removal and replace of paving bricks","m²",120]
[null,"Totals",{"$nulls":4},{"$f":"SUM(F23:F35)","v":{"v":0,"d":"R0.00"}}]
[3,"Steel structural work"]
["3.1","Repair trench covers (Checker plate)","each",100]
["3.2","repair of  HV Tower Anticlimbs ","each",100]
["3.3","Dismantling of steel structure","KG",200]
["3.4","Erection of steel","KG",200]
["3.5","Chemical anchors","each",100]
[null,"Totals",{"$nulls":4},{"$f":"SUM(F38:F42)","v":{"v":0,"d":"R0.00"}}]
[4,"Cable work (remove and Install) "]
["4.1","4 core2.5mm² steel wire armoured cable","m",15]
["4.1a","4 core2.5mm² steel wire armoured cable","m",20]
["4.2","4 core 4mm² steel wire armoured cable","m",20]
["4.2a","4 core 4mm² steel wire armoured cable","m",20]
["4.3","4 core 16mm² steel wire armoured cable","m",20]
["4.3a","4 core 16mm² steel wire armoured cable","m",20]
["4.4a","12/19 core 2.5 mm² steel wire armoured cable","m",20]
["4.4b","12/19 core 2.5 mm² steel wire armoured cable","m",20]
["4.4c","12/19 core 2.5 mm² steel wire armoured cable","m",20]
["4.4d","12/19 core 2.5 mm² steel wire armoured cable","m",20]
["4.5","37 core 2.5mm² steelwire armoured cable","m",20]
["4.5a","37 core 2.5mm² steelwire armoured cable","m",20]
["4.5.1","7 core 2.5mm² steelwire armoured cable","m",20]
["4.5.1a","7 core 2.5mm² steelwire armoured cable","m",20]
["4.5.2","4 core 70mm² steelwire armoured cable","m",20]
["4.5.2a","4 core 70mm² steelwire armoured cable","m",20]
["4.5.3","4 core 90mm² steelwire armoured cable","m",20]
["4.5.3a","4 core 90mm² steelwire armoured cable","m",20]
["4.5.4","4 core 120mm² steelwire armoured cable","m",20]
["4.5.4a","4 core 120mm² steelwire armoured cable","m",20]
["4.5.5","4 core 150mm² steelwire armoured cable","m",20]
["4.5.5a","4 core 150mm² steelwire armoured cable","m",20]
["4.6","10 pair comms armoured cable  ","m",20]
["4.7","25 paircomms armoured cable  ","m",20]
["4.8","50 pair comms armoured cable  ","m",20]
["4.9","Terminate cable","each",5]
["4.10","Supply and fit of cable glands No. 0,1,2,3,4","each",5]
[null,"Totals",{"$nulls":4},{"$f":"SUM(F45:F71)","v":{"v":0,"d":"R0.00"}}]
[5,"Stringing /Jumpers"]
["5.1","Bull conductor","m",50]
[5.2,"Double Bull conductor","m",50]
[5.3,"Triple Bull conductor","m",50]
[5.4,"Centipede","m",50]
[5.5,"Double Centipede conductor","m",48]
[5.6,"insulated conductor (aux)","m",50]
[5.7,"Clamping","each",100]
[5.8,"Crimp join","each",100]
[null,"Totals",{"$nulls":4},{"$f":"SUM(F74:F81)","v":{"v":0,"d":"R0.00"}}]
[6,"Earthing/ copper work",{"$nulls":3},"  "]
["6.1","Install flat copper","m",30]
["6.2","Round copper","m",30]
["6.3","Brazing joint","each",50]
["6.4","CAD welt connection","each",50]
[null,"Totals",{"$nulls":4},{"$f":"SUM(F84:F86)","v":{"v":0,"d":"R0.00"}}]
[7,"Dismantle/erect"]
["7.1 a","CVT 765kV","each",9]
["7.1 b","CVT 765kV","each",9]
["7.2a","CVT 400KV","each",18]
["7.2b","CVT 400KV","each",18]
["7.3a","CVT 275kV","each",18]
["7.3b","CVT 275kV","each",18]
["7.4a","CVT 220kV","each",18]
["7.4b","CVT 220kV","each",18]
["7.5a","CVT 132kV","each",18]
["7.5b","CVT 132kV","each",18]
["7.6a","CVT 66kV","each",18]
["7.6b","CVT 66kV","each",18]
["7.7a","CT/VT 765kV","each",9]
["7.7b","CT/VT 765kV","each",9]
["7.8a","CT/VT 400kV","each",18]
["7.8b","CT/VT 400kV","each",18]
["7.9a","CT/VT 275KV","each",18]
["7.9b","CT/VT 275KV","each",18]
["7.10a","CT/VT 220KV","each",18]
["7.10b","CT/VT 220KV","each",18]
["7.11a","VT &CT 132kV","each",18]
["7.11b","VT &CT 132kV","each",18]
["7.12a","CT/VT 66kV","each",18]
["7.12b","CT/VT 66kV","each",18]
["7.13a","CT/VT 33kV","each",18]
["7.13b","CT/VT 33kV","each",18]
["7.14a","CT/VT 22kV","each",18]
["7.14b","CT/VT 22kV","each",18]
["7.15a","Breaker 765 kV","each",9]
["7.15b","Breaker 765 kV","each",9]
["7.16a","Breaker 400kV","each",18]
["7.16b","Breaker 400kV","each",18]
["7.17a","Breaker 275kV","each",18]
["7.17b","Breaker 275kV","each",18]
["7.18a","Breaker 132kV","each",18]
["7.18b","Breaker 132kV","each",18]
["7.18c","Breaker 44KV","each",18]
["7.18d","Breaker 44KV","each",18]
["7.19a","Breaker 66KV","each",18]
["7.19b","Breaker 66KV","each",18]
["7.19.1","Breaker 22KV","each",18]
["7.19.1a","Breaker 22KV","each",18]
["7.19.2","Breaker 11KV","each",18]
["7.19.2a","Breaker 11KV","each",18]
["7.20a","Breaker 765 kV Dead tank","each",18]
["7.20b","Breaker 765 kV Dead tank","each",18]
["7.21a","Breaker 765 kV Live Tank","each",18]
["7.21b","Breaker 765 kV Live Tank","each",18]
["7.22a","Breaker 33KV","each",18]
["7.22b","Breaker 33KV","each",18]
["7.23a","Surge arrestor 765kV","each",18]
["7.23b","Surge arrestor 765kV","each",18]
["7.24a","Surge arrestor 400kV","each",18]
["7.24b","Surge arrestor 400kV","each",18]
["7.25a","Surge arrestor 275kV","each",18]
["7.25b","Surge arrestor 275kV","each",18]
["7.26a","Surge arrestor 132kV","each",18]
["7.26b","Surge arrestor 132kV","each",18]
[7.27,"Surge arrestor 66kV","each",18]
["7.27a","Surge arrestor 66kV","each",18]
[7.28,"Surge arrestor 33kV","each",18]
["7.28a","Surge arrestor 33kV","each",18]
[7.29,"Surge arrestor 22kV","each",18]
["7.29a","Surge arrestor 22kV","each",18]
[{"v":7.3,"d":"7.30"},"Capacitor Cans","each",120]
["7.30a","Capacitor Cans","each",120]
["7.31a","Auxilliary tranformer","each",20]
["7.31b","Auxilliary tranformer","each",20]
["7.32a","Reactors","each",5]
["7.32b","Reactors","each",5]
["7.33a","Air core Reactors","each",5]
["7.33b","Air core Reactors","each",5]
["7.34a","Isolators 765kV","each",9]
["7.34b","Isolators 765kV","each",9]
["7.35a","Isolators 400kV","each",18]
["7.35b","Isolators 400kV","each",18]
["7.36a","Isolators 275kV","each",18]
["7.36v","Isolators 275kV","each",18]
[7.37,"Isolators 132kV","each",18]
["7.37a","Isolators 132kV","each",18]
[7.38,"Isolators 66kV","each",18]
["7.38a","Isolators 66kV","each",18]
[7.39,"Isolators 33kV","each",18]
["7.39a","Isolators 33kV","each",18]
[{"v":7.4,"d":"7.40"},"Isolators 22kV","each",18]
["7.40a","Isolators 22kV","each",18]
[7.41,"Line traps ","each",18]
["7.42a","Line traps 132kV","each",18]
["7.42b","Line traps 132kV","each",18]
["7.43a","Line traps 220kV","each",18]
["7.43b","Line traps 220kV","each",18]
["7.44a","Line traps 275kV","each",18]
["7.44b","Line traps 275kV","each",18]
["7.45a","Line traps 400kV","each",18]
["7.45b","Line traps 400kV","each",18]
["7.46a","Line traps 765kV","each",18]
["7.46b","Line traps 765kV","each",18]
["7.47a","insulator string 132kV Composite","each",18]
["7.47b","insulator string 132kV Composite","each",18]
["7.48a","insulator string 220kV Composite","each",18]
["7.48b","insulator string 220kV Composite","each",18]
["7.49a","insulator string 275kV Composite","each",18]
["7.49b","insulator string 275kV Composite","each",18]
["7.50a","insulator string 400kV Composite","each",18]
["7.50b","insulator string 400kV Composite","each",15]
["7.51a","insulator string 765kV Composite","each",6]
["7.51b","insulator string 765kV Composite","each",6]
["7.52a","insulator string 132kV Glass","each",9]
["7.52b","insulator string 132kV Glass","each",9]
["7.53a","insulator string 220kV Glass","each",9]
["7.53b","insulator string 220kV Glass","each",9]
["7.54a","insulator string 275kV Glass","each",9]
["7.54b","insulator string 275kV Glass","each",9]
["7.55a","insulator string 400kV Glass","each",9]
["7.55b","insulator string 400kV Glass","each",9]
["7.56a","insulator string 765kV Glass","each",9]
["7.56b","insulator string 765kV Glass","each",9]
[null,"Totals",{"$nulls":4},{"$f":"SUM(F90:F206)","v":{"v":0,"d":"R0.00"}}]
[8,"Elect/perimeter fences "]
["8.1","Electric Fence Repairs  (inc HV conductor and iunsulators)","m",2000]
["8.2","Repair /adjust swing gate hinges","each",38]
["8.3","Repair and adjust end stop & roller guides","each",38]
["8.4","Readjust gate motors position and drive racks to eliminate slacks, align limit switches","each",40]
["8.5","Treat rust and re-paint with cold galvanizing paint","each",40]
["8.6","Seal motor covers and all cable entries to prevent moisture","each",40]
["8.7","Repair of faulty structures","each",40]
["8.8","Repair gate post","each",40]
["8.9","Supply and Install gate post","each",40]
["8.10","Repair gate drive rack","each",40]
["8.11","Supply and Install gate drive rack","each",40]
["8.12","Supply and Install Sliding gate track","each",40]
["8.13","Repair slide gate motor","each",40]
["8.14","Repair access booms","each",40]
["8.15a","Supply and Install slide gate motor","each",40]
["8.15b","Supply and Install slide gate motor","each",40]
["8.16","Supply and Install slide gate roller wheels","each",40]
["8.17","Modify access gate brackets","each",40]
["8.18","Supply and fit Servitude gate  ","each",40]
["8.19","Supply and fit Servitude gate  posts","each",40]
["8.20","supply and fit pedestrian gate ","each",40]
["8.21","Supply and Install 2m high Diamond mesh fencing","m",40]
["8.22","2m high Welded mesh fencing","m",40]
[8.23,"supply and install fence posts 2 m high","each",40]
[null,"Totals",{"$nulls":4},{"$f":"SUM(F209:F232)","v":{"v":0,"d":"R0.00"}}]
[{"$nulls":4},"TOTAL",null,{"$f":"SUM(G3:G233)","v":{"v":0,"d":"R0.00"}}]

{"sheet":"Sheet1","index":2,"n_rows":234,"n_cols":7,"rows_kept":234}
["Item No.","Description","unit ","Non-committal  Quantity","Rate R.","Price R.","Totals"]
[1,"General"]
["1.1","Complying with health and safety","Item"]
["1.2","Workshop (fabrication)","Item"]
["1.3","Supervision per day","day"]
["1.4","Plant Hire - actual cost + 5% handling fee","%"]
["1.5","Material supply - actual cost + 5% handling fee","%"]
["1.6","Specialist tools and equipment hire - actual +5% handling fee","%"]
["1.7","LDV Transport 4 x 2","km"]
["1.8","LDV Transport 4 x 4","km"]
["1.9","Transport for labour (minibus 13)","km"]
["1.10","Transport for labour (minibus 23)","km"]
["1.11","6 m³ Tipper Truck","km"]
["1.12","10m³ Tipper Truck","km"]
["1.13","Transport Truck 2-4 ton","km"]
["1.14","Transport Truck 5-8 ton","km"]
["1.15","Transport Truck 5-8 ton with crane","km"]
["1.16","Transport Truck 9-14 ton","km"]
["1.17","Transport Truck 9-14 ton with crane","km"]
["1.18","Transport truck >22 ton","km"]
[null,"Totals",{"$nulls":4},{"$f":"SUM(F3:F20)","v":{"v":0,"d":"R0.00"}}]
[2,"Civils"]
["2.1","Trenching Excavation and filling","m³"]
["2.2","Remove and reinstate yard stone","m²"]
["2.3","25Mpa concrete work","m³"]
["2.4","encapsulate with conductive concrete","m³"]
["2.5","Supply and Mount Bollard","each"]
["2.6","Anchor copper straps in croncrete","m"]
["2.7","Lifting an replacing trench covers","each"]
["2.8","Painting of copper straps","m"]
["2.9","Construct a bundwall with use of concrete slabs","m"]
["2.10","Construct a bundwall","m²"]
["2.11","Remove stone","m²"]
["2.12","Lay yard stone","m²"]
["2.13","Removal and replace of paving bricks","m²"]
[null,"Totals",{"$nulls":4},{"$f":"SUM(F23:F35)","v":{"v":0,"d":"R0.00"}}]
[3,"Steel structural work"]
["3.1","Repair trench covers (Checker plate)","each"]
["3.2","repair of  HV Tower Anticlimbs ","each"]
["3.3","Dismantling of steel structure","KG"]
["3.4","Erection of steel","KG"]
["3.5","Chemical anchors","each"]
[null,"Totals",{"$nulls":4},{"$f":"SUM(F38:F42)","v":{"v":0,"d":"R0.00"}}]
[4,"Cable work (remove and Install) "]
["4.1","4 core2.5mm² steel wire armoured cable","m"]
["4.1a","4 core2.5mm² steel wire armoured cable","m"]
["4.2","4 core 4mm² steel wire armoured cable","m"]
["4.2a","4 core 4mm² steel wire armoured cable","m"]
["4.3","4 core 16mm² steel wire armoured cable","m"]
["4.3a","4 core 16mm² steel wire armoured cable","m"]
["4.4a","12/19 core 2.5 mm² steel wire armoured cable","m"]
["4.4b","12/19 core 2.5 mm² steel wire armoured cable","m"]
["4.4c","12/19 core 2.5 mm² steel wire armoured cable","m"]
["4.4d","12/19 core 2.5 mm² steel wire armoured cable","m"]
["4.5","37 core 2.5mm² steelwire armoured cable","m"]
["4.5a","37 core 2.5mm² steelwire armoured cable","m"]
["4.5.1","7 core 2.5mm² steelwire armoured cable","m"]
["4.5.1a","7 core 2.5mm² steelwire armoured cable","m"]
["4.5.2","4 core 70mm² steelwire armoured cable","m"]
["4.5.2a","4 core 70mm² steelwire armoured cable","m"]
["4.5.3","4 core 90mm² steelwire armoured cable","m"]
["4.5.3a","4 core 90mm² steelwire armoured cable","m"]
["4.5.4","4 core 120mm² steelwire armoured cable","m"]
["4.5.4a","4 core 120mm² steelwire armoured cable","m"]
["4.5.5","4 core 150mm² steelwire armoured cable","m"]
["4.5.5a","4 core 150mm² steelwire armoured cable","m"]
["4.6","10 pair comms armoured cable  ","m"]
["4.7","25 paircomms armoured cable  ","m"]
["4.8","50 pair comms armoured cable  ","m"]
["4.9","Terminate cable","each"]
["4.10","Supply and fit of cable glands No. 0,1,2,3,4","each"]
[null,"Totals",{"$nulls":4},{"$f":"SUM(F45:F71)","v":{"v":0,"d":"R0.00"}}]
[5,"Stringing /Jumpers"]
["5.1","Bull conductor","m"]
[5.2,"Double Bull conductor","m"]
[5.3,"Triple Bull conductor","m"]
[5.4,"Centipede","m"]
[5.5,"Double Centipede conductor","m"]
[5.6,"insulated conductor (aux)","m"]
[5.7,"Clamping","each"]
[5.8,"Crimp join","each"]
[null,"Totals",{"$nulls":4},{"$f":"SUM(F74:F81)","v":{"v":0,"d":"R0.00"}}]
[6,"Earthing/ copper work",{"$nulls":3},"  "]
["6.1","Install flat copper","m"]
["6.2","Round copper","m"]
["6.3","Brazing joint","each"]
["6.4","CAD welt connection","each"]
[null,"Totals",{"$nulls":4},{"$f":"SUM(F84:F86)","v":{"v":0,"d":"R0.00"}}]
[7,"Dismantle/erect"]
["7.1 a","CVT 765kV","each"]
["7.1 b","CVT 765kV","each"]
["7.2a","CVT 400KV","each"]
["7.2b","CVT 400KV","each"]
["7.3a","CVT 275kV","each"]
["7.3b","CVT 275kV","each"]
["7.4a","CVT 220kV","each"]
["7.4b","CVT 220kV","each"]
["7.5a","CVT 132kV","each"]
["7.5b","CVT 132kV","each"]
["7.6a","CVT 66kV","each"]
["7.6b","CVT 66kV","each"]
["7.7a","CT/VT 765kV","each"]
["7.7b","CT/VT 765kV","each"]
["7.8a","CT/VT 400kV","each"]
["7.8b","CT/VT 400kV","each"]
["7.9a","CT/VT 275KV","each"]
["7.9b","CT/VT 275KV","each"]
["7.10a","CT/VT 220KV","each"]
["7.10b","CT/VT 220KV","each"]
["7.11a","VT &CT 132kV","each"]
["7.11b","VT &CT 132kV","each"]
["7.12a","CT/VT 66kV","each"]
["7.12b","CT/VT 66kV","each"]
["7.13a","CT/VT 33kV","each"]
["7.13b","CT/VT 33kV","each"]
["7.14a","CT/VT 22kV","each"]
["7.14b","CT/VT 22kV","each",5]
["7.15a","Breaker 765 kV","each"]
["7.15b","Breaker 765 kV","each"]
["7.16a","Breaker 400kV","each"]
["7.16b","Breaker 400kV","each"]
["7.17a","Breaker 275kV","each"]
["7.17b","Breaker 275kV","each"]
["7.18a","Breaker 132kV","each"]
["7.18b","Breaker 132kV","each"]
["7.18c","Breaker 44KV","each"]
["7.18d","Breaker 44KV","each"]
["7.19a","Breaker 66KV","each"]
["7.19b","Breaker 66KV","each"]
["7.19.1","Breaker 22KV","each"]
["7.19.1a","Breaker 22KV","each"]
["7.19.2","Breaker 11KV","each"]
["7.19.2a","Breaker 11KV","each"]
["7.20a","Breaker 765 kV Dead tank","each"]
["7.20b","Breaker 765 kV Dead tank","each"]
["7.21a","Breaker 765 kV Live Tank","each"]
["7.21b","Breaker 765 kV Live Tank","each"]
["7.22a","Breaker 33KV","each"]
["7.22b","Breaker 33KV","each"]
["7.23a","Surge arrestor 765kV","each"]
["7.23b","Surge arrestor 765kV","each"]
["7.24a","Surge arrestor 400kV","each"]
["7.24b","Surge arrestor 400kV","each"]
["7.25a","Surge arrestor 275kV","each"]
["7.25b","Surge arrestor 275kV","each"]
["7.26a","Surge arrestor 132kV","each"]
["7.26b","Surge arrestor 132kV","each"]
[7.27,"Surge arrestor 66kV","each"]
["7.27a","Surge arrestor 66kV","each"]
[7.28,"Surge arrestor 33kV","each"]
["7.28a","Surge arrestor 33kV","each"]
[7.29,"Surge arrestor 22kV","each"]
["7.29a","Surge arrestor 22kV","each"]
[{"v":7.3,"d":"7.30"},"Capacitor Cans","each"]
["7.30a","Capacitor Cans","each"]
["7.31a","Auxilliary tranformer","each"]
["7.31b","Auxilliary tranformer","each"]
["7.32a","Reactors","each"]
["7.32b","Reactors","each"]
["7.33a","Air core Reactors","each"]
["7.33b","Air core Reactors","each"]
["7.34a","Isolators 765kV","each"]
["7.34b","Isolators 765kV","each"]
["7.35a","Isolators 400kV","each"]
["7.35b","Isolators 400kV","each"]
["7.36a","Isolators 275kV","each"]
["7.36v","Isolators 275kV","each"]
[7.37,"Isolators 132kV","each"]
["7.37a","Isolators 132kV","each"]
[7.38,"Isolators 66kV","each"]
["7.38a","Isolators 66kV","each"]
[7.39,"Isolators 33kV","each"]
["7.39a","Isolators 33kV","each"]
[{"v":7.4,"d":"7.40"},"Isolators 22kV","each"]
["7.40a","Isolators 22kV","each"]
[7.41,"Line traps ","each"]
["7.42a","Line traps 132kV","each"]
["7.42b","Line traps 132kV","each"]
["7.43a","Line traps 220kV","each"]
["7.43b","Line traps 220kV","each"]
["7.44a","Line traps 275kV","each"]
["7.44b","Line traps 275kV","each"]
["7.45a","Line traps 400kV","each"]
["7.45b","Line traps 400kV","each"]
["7.46a","Line traps 765kV","each"]
["7.46b","Line traps 765kV","each"]
["7.47a","insulator string 132kV Composite","each"]
["7.47b","insulator string 132kV Composite","each"]
["7.48a","insulator string 220kV Composite","each"]
["7.48b","insulator string 220kV Composite","each"]
["7.49a","insulator string 275kV Composite","each"]
["7.49b","insulator string 275kV Composite","each"]
["7.50a","insulator string 400kV Composite","each"]
["7.50b","insulator string 400kV Composite","each"]
["7.51a","insulator string 765kV Composite","each"]
["7.51b","insulator string 765kV Composite","each"]
["7.52a","insulator string 132kV Glass","each"]
["7.52b","insulator string 132kV Glass","each"]
["7.53a","insulator string 220kV Glass","each"]
["7.53b","insulator string 220kV Glass","each"]
["7.54a","insulator string 275kV Glass","each"]
["7.54b","insulator string 275kV Glass","each"]
["7.55a","insulator string 400kV Glass","each"]
["7.55b","insulator string 400kV Glass","each"]
["7.56a","insulator string 765kV Glass","each"]
["7.56b","insulator string 765kV Glass","each"]
[null,"Totals",{"$nulls":4},{"$f":"SUM(F90:F206)","v":{"v":0,"d":"R0.00"}}]
[8,"Elect/perimeter fences "]
["8.1","Electric Fence Repairs  (inc HV conductor and iunsulators)","m"]
["8.2","Repair /adjust swing gate hinges","each"]
["8.3","Repair and adjust end stop & roller guides","each"]
["8.4","Readjust gate motors position and drive racks to eliminate slacks, align limit switches","each"]
["8.5","Treat rust and re-paint with cold galvanizing paint","each"]
["8.6","Seal motor covers and all cable entries to prevent moisture","each"]
["8.7","Repair of faulty structures","each"]
["8.8","Repair gate post","each"]
["8.9","Supply and Install gate post","each"]
["8.10","Repair gate drive rack","each"]
["8.11","Supply and Install gate drive rack","each"]
["8.12","Supply and Install Sliding gate track","each"]
["8.13","Repair slide gate motor","each"]
["8.14","Repair access booms","each"]
["8.15a","Supply and Install slide gate motor","each"]
["8.15b","Supply and Install slide gate motor","each"]
["8.16","Supply and Install slide gate roller wheels","each"]
["8.17","Modify access gate brackets","each"]
["8.18","Supply and fit Servitude gate  ","each"]
["8.19","Supply and fit Servitude gate  posts","each"]
["8.20","supply and fit pedestrian gate ","each"]
["8.21","Supply and Install 2m high Diamond mesh fencing","m"]
["8.22","2m high Welded mesh fencing","m"]
[8.23,"supply and install fence posts 2 m high","each"]
[null,"Totals",{"$nulls":4},{"$f":"SUM(F209:F232)","v":{"v":0,"d":"R0.00"}}]
[{"$nulls":4},"TOTAL",null,{"$f":"SUM(G3:G233)","v":{"v":0,"d":"R0.00"}}]